fUST/lending_fUST_20260203
["ID","MTS","AMOUNT","RATE_DAILY","PERIOD"]
[404333166,1770065440529,-413.04110324,0.00031887,2]
[404333168,1770065440539,-600.0,0.00031952,30]
[404333170,1770065440550,-174.48,0.0003216,31]
[404333173,1770065440559,-14571.3541959,0.00032275,2]
[404333175,1770065440568,-250.0,0.0003294,2]
[404333177,1770065440578,-250.0,0.0003294,2]
[404333179,1770065440587,-250.0,0.0003294,2]
[404333181,1770065440596,-250.0,0.0003294,2]
[404333183,1770065440606,-250.0,0.0003294,2]
[404333184,1770065440615,-250.0,0.0003294,2]
[404333186,1770065440624,-250.0,0.0003294,2]
[404333199,1770065440707,-250.0,0.0003294,2]
[404333201,1770065440722,-250.0,0.0003294,2]
[404333203,1770065440732,-250.0,0.0003294,2]
[404333205,1770065440743,-250.0,0.0003294,2]
[404333208,1770065440754,-717.0,0.00033744,2]
[404333210,1770065440763,-180.077,0.00033744,2]
[404333212,1770065440773,-1626.59820152,0.0003376,2]
[404333214,1770065440782,-395.91121433,0.00034102,2]
[404333216,1770065440791,-924.439951,0.00034353,2]
[404333218,1770065440800,-714.91892673,0.0003509,4]
[404333220,1770065440809,-720.0,0.00035147,30]
[404333222,1770065440818,-1516.1964778,0.00035599,2]
[404333224,1770065440827,-151.015349,0.00035616,2]
[404333226,1770065440836,-151.73662798,0.00035692,2]
[404333228,1770065440845,-924.439951,0.00035799,2]
[404333230,1770065440854,-207.33535066,0.00035978,3]
[404333231,1770065440863,-25331.79833889,0.00035988,2]
[404333234,1770065440875,-749.58,0.00035988,2]
[404333236,1770065440885,-112218.92015519,0.00035988,2]
[404333736,1770065445741,-6682.22560247,0.00035988,2]
[404333810,1770065446453,-2924.25012025,0.00035988,2]
[404334251,1770065466206,500.0,0.00013273,2]
[404334252,1770065466604,500.0,0.00013273,2]
[404334253,1770065466642,500.0,0.00013273,2]
[404334256,1770065470727,300.0,0.00013673,2]
[404334257,1770065476332,560.05447856,0.00013273,2]
[404334258,1770065476792,500.0,0.00013273,2]
[404334259,1770065478677,500.15361623,0.00013273,2]
[404334260,1770065479044,500.0,0.00013273,2]
[404334261,1770065481271,239.94552144,0.00013273,2]
[404334262,1770065481989,500.0,0.00013273,2]
[404334263,1770065482397,500.0,0.00013273,2]
[404334264,1770065482963,500.0,0.00013273,2]
[404334265,1770065483085,500.0,0.00013273,2]
[404334268,1770065510135,500.0,0.00027451,120]
[404334270,1770065526071,500.0,0.00013699,2]
[404334271,1770065526104,500.0,0.00013699,2]
[404334272,1770065526310,500.0,0.00013699,2]
[404334273,1770065526534,500.0,0.00013699,2]
[404334274,1770065528946,543.71404472,0.00013699,2]
[404334276,1770065583310,500.0,0.00013699,2]
[404334277,1770065583341,440.96392399,0.00013821,2]
[404334278,1770065583372,415.17841506,0.00013699,2]
[404334279,1770065583394,20.83381923,0.00013699,2]
[404334280,1770065583432,500.0,0.00013699,2]
[404334281,1770065583458,500.0,0.00013699,2]
[404334282,1770065583485,500.0,0.00013699,2]
[404334283,1770065583512,1002.0914091,0.00014247,2]
[404334284,1770065583538,500.0,0.00013273,2]
[404334285,1770065583564,502.67054401,0.00014247,2]
[404334286,1770065583603,500.0,0.00014247,2]
[404334287,1770065583630,614.12659995,0.00013699,2]
[404334288,1770065583699,500.0,0.00013699,2]
[404334289,1770065583749,1002.37216285,0.00014247,2]
[404334290,1770065584220,500.0,0.00013699,2]
[404334291,1770065584272,502.99878118,0.00014247,2]
[404334292,1770065584539,589.45287422,0.00014247,2]
[404334293,1770065584636,500.0,0.00013699,2]
[404334294,1770065585135,500.0,0.00013699,2]
[404334295,1770065585214,500.0,0.00013699,2]
[404334296,1770065585242,500.0,0.00013273,2]
[404334297,1770065585273,265.46380946,0.00013821,2]
[404334298,1770065585296,234.53619054,0.00013821,2]
[404334299,1770065586504,500.0,0.00013699,2]
[404334300,1770065586560,500.0,0.00013699,2]
[404334301,1770065587745,500.0,0.00013699,2]
[404334302,1770065588830,170.04904198,0.00039222,120]
[404334303,1770065589365,445.43067652,0.00013699,2]
[404334304,1770065592478,500.0,0.00013699,2]
[404334305,1770065592524,500.0,0.00014247,2]
[404334306,1770065593628,500.0,0.00013699,2]
[404334307,1770065594578,532.3582484,0.00013699,2]
[404334308,1770065597278,500.0,0.00013699,2]
[404334309,1770065599098,500.0,0.00013273,2]
[404334310,1770065601008,500.0,0.00013699,2]
[404334311,1770065601852,500.0,0.00013699,2]
[404334312,1770065603030,502.71899874,0.00013699,2]
[404334313,1770065603058,500.0,0.00013699,2]
[404334314,1770065604074,500.0,0.00013273,2]
[404334315,1770065604103,1000.0,0.00013821,2]
[404334316,1770065604131,1284.9658858,0.00014368,2]
[404334317,1770065604154,215.0341142,0.00014368,2]
[404334318,1770065604186,1500.0,0.00014916,2]
[404334319,1770065604256,500.0,0.00013699,2]
[404334320,1770065604312,500.0,0.00013699,2]
[404334321,1770065604797,500.0,0.00013699,2]
[404334322,1770065606103,500.0,0.00013699,2]
[404334323,1770065606134,1000.0,0.00014247,2]
[404334324,1770065606191,1500.0,0.00014795,2]
[404334328,1770065643812,227.67775309,0.00013699,2]
[404334329,1770065643849,500.0,0.00013699,2]
[404334330,1770065644484,165.70291041,0.00013699,2]
[404334331,1770065646981,500.0,0.00013699,2]
[404334332,1770065647793,523.45765406,0.00013699,2]
[404334333,1770065648209,158.68078088,0.00013699,2]
[404334336,1770065703896,504.3433977,0.00013699,2]
[404334337,1770065704149,500.0,0.00013699,2]
[404334338,1770065704250,500.0,0.00013699,2]
[404334339,1770065705306,205.11338966,0.00013699,2]
[404334340,1770065705332,294.88661034,0.00013699,2]
[404334341,1770065705765,500.0,0.00013273,2]
[404334345,1770065771668,9205.12338966,0.0001,2]
[404334346,1770065771692,10000.01,0.0001,2]
[404334347,1770065771716,10000.01,0.0001,2]
[404334348,1770065771741,10000.01,0.0001,2]
[404334349,1770065771765,8907.90661034,0.0001,2]
[404334354,1770065822921,500.0,0.00013699,2]
[404334355,1770065822950,500.0,0.00013699,2]
[404334356,1770065822978,92.10338966,0.00013699,2]
[404334357,1770065823002,414.95762017,0.00013699,2]
[404334358,1770065823033,500.0,0.00013699,2]
[404334359,1770065823062,1000.0,0.00014247,2]
[404334360,1770065823090,1500.0,0.00014795,2]
[404334361,1770065823120,500.0,0.00013699,2]
[404334362,1770065826869,500.0,0.00013699,2]
[404334363,1770065826903,1000.0,0.00014247,2]
[404334364,1770065826957,1500.0,0.00014795,2]
[404334365,1770065827248,500.0,0.00013699,2]
[404334366,1770065835533,2585.05237983,0.0002,2]
[404334367,1770065835557,2414.94762017,0.0002,2]
[404334472,1770065858073,5000.0,0.0002,2]
[404334473,1770065880082,2585.06237983,0.0002,2]
[404334474,1770065880108,2414.93762017,0.0002,2]
[404334481,1770065903258,2341.26351821,0.0002,2]
[404334488,1770065943409,500.0,0.00013699,2]
[404334489,1770065943445,338.45854352,0.00013273,2]
[404334490,1770065943489,500.0,0.00013699,2]
[404334491,1770065944863,500.0,0.00013273,2]
[404334492,1770065945492,500.0,0.00013699,2]
[404334493,1770065945538,500.0,0.00013699,2]
[404334494,1770065945747,445.98241214,0.00013699,2]
[404334513,1770066005094,500.0,0.00013273,2]
[404334514,1770066005142,500.0,0.00013821,2]
[404334515,1770066005191,500.0,0.00013273,2]
[404334516,1770066005230,459.36790596,0.00013821,2]
[404334517,1770066005262,40.63209404,0.00013821,2]
[404334519,1770066024883,5000.0,0.0002,2]
[404334522,1770066047337,4959.37790596,0.0002,2]
[404334523,1770066047364,40.62209404,0.0002,2]
[404334571,1770066063103,160.78801059,0.00013699,2]
[404334573,1770066063158,500.0,0.00013699,2]
[404334574,1770066063200,500.0,0.00013699,2]
[404334576,1770066063237,842.25454897,0.00014247,2]
[404334578,1770066063272,402.53936214,0.00014247,2]
[404334584,1770066063508,158.41698519,0.00013699,2]
[404334590,1770066064916,249.41949827,0.00013699,2]
[404334591,1770066065248,443.51307087,0.00014247,2]
[404334592,1770066065349,500.0,0.00013699,2]
[404334593,1770066065873,505.40496948,0.00013699,2]
[404334594,1770066066172,500.0,0.00013273,2]
[404334595,1770066066223,1000.0,0.00013821,2]
[404334596,1770066066280,332.41054116,0.00014368,2]
[404334597,1770066066482,500.0,0.00013699,2]
[404334602,1770066067501,500.0,0.00026344,120]
[404334606,1770066070571,3364.64091929,0.0002,2]
[404334607,1770066070597,1635.35908071,0.0002,2]
[404334637,1770066092798,5000.0,0.0002,2]
[404334640,1770066100484,-105.90519774,0.00020381,2]
[404334641,1770066100497,-1094.09480226,0.00020381,2]
[404334642,1770066100506,-105.90519774,0.00020382,2]
[404334643,1770066108534,3364.65091929,0.00015342,2]
[404334644,1770066108558,3527.76908071,0.00015342,2]
[404334645,1770066115473,5000.0,0.0002,2]
[404334646,1770066125232,500.0,0.00013699,2]
[404334647,1770066125369,500.0,0.00013699,2]
[404334648,1770066125676,472.24091929,0.00013273,2]
[404334649,1770066125701,87.09266378,0.00013273,2]
[404334650,1770066126155,243.89079649,0.00013699,2]
[404334659,1770066137758,5000.0,0.0002,2]
[404334668,1770066145534,4669.02653973,0.0002,2]
[404334669,1770066145558,330.97346027,0.0002,2]
[404334670,1770066160700,5000.0,0.0002,2]
[404334674,1770066183295,4669.03653973,0.0002,2]
[404334675,1770066183319,330.96346027,0.0002,2]
[404334676,1770066183795,234.09680817,0.00013273,2]
[404334678,1770066205333,5000.0,0.0002,2]
[404334679,1770066227576,3442.61267944,0.0002,2]
[404334743,1770066303198,500.0,0.00013699,2]
[404334744,1770066303227,492.33705212,0.00013699,2]
[404334745,1770066303252,8.35473023,0.00013699,2]
[404334753,1770066363071,500.0,0.00013699,2]
[404334757,1770066381942,1000.0,0.00019429,2]
[404334759,1770066423934,500.0,0.00013699,2]
[404334760,1770066423963,348.473489,0.00014795,2]
[404334761,1770066424023,1000.0,0.00014247,2]
[404334762,1770066445155,500.0,0.00024934,120]
[404334825,1770066541048,-408.09480226,0.00020382,2]
[404335024,1770066638496,-728.0,0.00020382,2]
[404335026,1770066638506,-150.0,0.00020384,2]
[404335028,1770066638515,-172.56,0.000204,2]
[404335030,1770066638524,-363.48904198,0.00020438,2]
[404335032,1770066638536,-836.51095802,0.00020438,2]
[404335034,1770066638546,-1527.37095179,0.00020439,2]
[404335036,1770066638555,-500.0,0.00020439,2]
[404335038,1770066638564,-500.0,0.00020439,2]
[404335041,1770066638574,-500.0,0.00020439,2]
[404335042,1770066638583,-462.16191189,0.00020439,2]
[404335045,1770066638593,-500.0,0.00020439,2]
[404335046,1770066638603,-500.0,0.00020439,2]
[404335048,1770066638613,-500.0,0.00020439,2]
[404335050,1770066638622,-500.0,0.00020439,2]
[404335052,1770066638631,-500.0,0.00020439,2]
[404335054,1770066638641,-500.0,0.00020439,2]
[404335056,1770066638650,-500.0,0.00020439,2]
[404335059,1770066638660,-500.0,0.00020439,2]
[404335060,1770066638669,-500.0,0.00020439,2]
[404335062,1770066638678,-500.0,0.00020439,2]
[404335064,1770066638688,-500.0,0.00020439,2]
[404335066,1770066638697,-500.0,0.00020439,2]
[404335069,1770066638707,-500.0,0.00020439,2]
[404335071,1770066638717,-500.0,0.00020439,2]
[404335073,1770066638727,-500.0,0.00020439,2]
[404335075,1770066638736,-406.39821167,0.00020439,2]
[404335076,1770066638745,-500.0,0.00020439,2]
[404335078,1770066638755,-500.0,0.00020439,2]
[404335081,1770066638764,-500.0,0.00020439,2]
[404335082,1770066638774,-500.0,0.00020439,2]
[404335085,1770066638784,-500.0,0.00020439,2]
[404335087,1770066638794,-500.0,0.00020439,2]
[404335089,1770066638803,-500.0,0.00020439,2]
[404335090,1770066638812,-473.20892416,0.00020439,2]
[404335092,1770066638822,-500.0,0.00020439,2]
[404335094,1770066638831,-500.0,0.00020439,2]
[404335096,1770066638840,-500.0,0.00020439,2]
[404335098,1770066638849,-339.13156693,0.00020439,2]
[404335101,1770066638862,-160.86843307,0.00020439,2]
[404335103,1770066638875,-247.02156693,0.00020439,2]
[404335106,1770066638887,-252.97843307,0.00020439,2]
[404335108,1770066638896,-500.0,0.00020439,2]
[404335110,1770066638906,-500.0,0.00020439,2]
[404335112,1770066638916,-500.0,0.00020439,2]
[404335114,1770066638925,-500.0,0.00020439,2]
[404335116,1770066638935,-438.43762904,0.00020439,2]
[404335118,1770066638946,-500.0,0.00020439,2]
[404335120,1770066638956,-307.0134201,0.00020439,2]
[404335122,1770066638965,-243.0,0.00020439,2]
[404335124,1770066638974,-300.0,0.00020439,2]
[404335126,1770066638984,-31554.8936674,0.0002044,2]
[404335128,1770066638994,-177.46,0.000206,2]
[404335130,1770066639004,-11282.0,0.00021,2]
[404335132,1770066639013,-234.01413472,0.00021005,2]
[404335134,1770066639022,-500.0,0.00021005,2]
[404335136,1770066639032,-1313.36125034,0.0002106,2]
[404335138,1770066639041,-500.0,0.00021422,2]
[404335140,1770066639052,-299.15967449,0.00021423,2]
[404335142,1770066639062,-300.0,0.00021424,10]
[404335143,1770066639072,-300.0,0.00021424,10]
[404335144,1770066639081,-300.0,0.00021424,10]
[404335145,1770066639090,-300.0,0.00021424,10]
[404335146,1770066639101,-300.0,0.00021424,10]
[404335147,1770066639110,-300.0,0.00021424,10]
[404335148,1770066639122,-300.0,0.00021424,10]
[404335149,1770066639131,-300.0,0.00021424,10]
[404335150,1770066639140,-300.0,0.00021424,10]
[404335151,1770066639149,-300.0,0.00021424,10]
[404335152,1770066639158,-300.0,0.00021424,10]
[404335153,1770066639167,-300.0,0.00021424,10]
[404335154,1770066639176,-300.0,0.00021424,10]
[404335155,1770066639186,-300.0,0.00021424,10]
[404335156,1770066639195,-300.0,0.00021424,10]
[404335157,1770066639204,-420.0,0.00022245,2]
[404335158,1770066639213,-480.0,0.00022351,2]
[404335159,1770066639222,-177.0,0.00022384,2]
[404335160,1770066639233,-500.0,0.00023379,2]
[404335161,1770066639242,-587.0,0.00024212,2]
[404335162,1770066639251,-175.06817999,0.00024384,2]
[404335163,1770066639260,-768.5208145,0.00024935,2]
[404335164,1770066639269,-527.0,0.00026352,2]
[404335165,1770066639278,-267.87163737,0.00029836,14]
[404335166,1770066639287,-432.59710959,0.0003091,2]
[404335167,1770066639296,-232.46,0.00031226,2]
[404335169,1770066639306,-186.77923775,0.00031326,2]
[404335171,1770066639315,-369.61742465,0.00031711,2]
[404335173,1770066639325,-174.481,0.00032167,31]
[404335186,1770066639430,-527.3766713,0.00032329,4]
[404335188,1770066639443,-209.40437684,0.00032518,2]
[404335190,1770066639452,-217.15233878,0.00032518,2]
[404335192,1770066639462,-225.18697532,0.00032518,2]
[404335194,1770066639472,-233.51889341,0.00032518,2]
[404335196,1770066639481,-242.15909246,0.00032518,2]
[404335198,1770066639491,-251.11897888,0.00032518,2]
[404335200,1770066639500,-260.4103811,0.00032518,2]
[404335202,1770066639510,-270.0455652,0.00032518,2]
[404335204,1770066639519,-151.4952875,0.00032518,2]
[404335206,1770066639528,-250.0,0.00032518,2]
[404335208,1770066639536,-361.75871461,0.00032518,2]
[404335210,1770066639545,-372.72345342,0.00033328,4]
[404335212,1770066639554,-421.99749397,0.000344,2]
[404335214,1770066639563,-717.0,0.00034878,2]
[404335216,1770066639572,-180.077,0.00034878,2]
[404335218,1770066639581,-150.0,0.00035418,2]
[404335220,1770066639590,-150.0,0.00035418,2]
[404335222,1770066639599,-500.0,0.00035418,2]
[404335224,1770066639609,-150.0,0.00035418,2]
[404335226,1770066639618,-500.0,0.00035418,2]
[404335228,1770066639627,-150.0,0.00035418,2]
[404335230,1770066639636,-150.0,0.00035418,2]
[404335232,1770066639645,-200.3613332,0.00035418,2]
[404335234,1770066639654,-152.48675595,0.00035555,2]
[404335236,1770066639663,-254.55135689,0.00035555,2]
[404335238,1770066639672,-500.0,0.00035555,2]
[404335240,1770066639682,-150.0,0.00035555,2]
[404335242,1770066639691,-500.0,0.00035555,2]
[404335244,1770066639702,-150.0,0.00035555,2]
[404335246,1770066639711,-150.0,0.00035555,2]
[404335248,1770066639721,-500.0,0.00035692,2]
[404335250,1770066639730,-250.81623099,0.00035692,2]
[404335252,1770066639739,-150.0,0.00035692,2]
[404335254,1770066639749,-500.0,0.00035692,2]
[404335256,1770066639758,-227.0699934,0.00035692,2]
[404335258,1770066639767,-500.0,0.00035829,2]
[404335260,1770066639776,-150.0,0.00035829,2]
[404335262,1770066639785,-500.0,0.00035829,2]
[404335264,1770066639794,-500.0,0.00035966,2]
[404335266,1770066639803,-175.03119549,0.00035966,2]
[404335268,1770066639813,-500.0,0.00035966,2]
[404335270,1770066639822,-896.12,0.00035978,10]
[404335272,1770066639833,-12155.2257832,0.00035988,2]
[404335274,1770066639842,-211.23573527,0.00036103,2]
[404335276,1770066639851,-500.0,0.00036103,2]
[404335278,1770066639861,-500.0,0.0003624,2]
[404335280,1770066639871,-500.0,0.00036377,2]
[404335282,1770066639880,-602.17985327,0.00036514,2]
[404335284,1770066639890,-500.0,0.00036706,120]
[404335286,1770066639899,-600.0,0.00036707,30]
[404335288,1770066639908,-924.439951,0.00037246,2]
[404335290,1770066639917,-321.0,0.00037473,2]
[404335292,1770066639927,-717.0,0.00037878,2]
[404335294,1770066639936,-179.0,0.00037878,2]
[404335296,1770066639945,-336.20262796,0.00037902,2]
[404335298,1770066639955,-924.439951,0.00038692,2]
[404335300,1770066639964,-333.33333333,0.000388,2]
[404335302,1770066639973,-508.5145,0.00039199,10]
[404335304,1770066639982,-508.5145,0.00039199,14]
[404335306,1770066639991,-508.5145,0.00039199,22]
[404335308,1770066640001,-834.71,0.00039209,10]
[404335310,1770066640011,-15000.0,0.00039219,14]
[404335312,1770066640020,-1000.0,0.00039221,30]
[404335314,1770066640029,-547.98655577,0.00039389,120]
[404335316,1770066640038,-1000.0,0.0003939,30]
[404335318,1770066640047,-1000.0,0.0003949,30]
[404335320,1770066640060,-229.31,0.0003999,3]
[404335322,1770066640069,-687.98,0.0003999,3]
[404335324,1770066640079,-311.00302599,0.0003999,3]
[404335326,1770066640087,-35453.0512934,0.0004,2]
[404335403,1770066640710,-2000.03313,0.0004,2]
[404335941,1770066645975,-1088.56288172,0.0004,2]
[404335949,1770066646031,-6097.03692679,0.0004,2]
[404336051,1770066646798,-156855.71649864,0.0004,2]
[404337605,1770066663110,501.30398043,0.00013273,2]
[404337611,1770066663157,502.98054822,0.00013273,2]
[404337931,1770066727347,503.17437249,0.00013273,2]
[404337932,1770066728008,500.0,0.00013699,2]
[404337933,1770066728054,1000.0,0.00014247,2]
[404337934,1770066728121,459.22058997,0.00014795,2]
[404337939,1770066752717,785.5,0.0003923,30]
[404337953,1770066848905,-3317.78439753,0.00020337,2]
[404337954,1770066849680,-3364.44120494,0.00020337,2]
[404337955,1770066849718,-300.0,0.00020437,2]
[404337956,1770066849761,-300.0,0.00020844,2]
[404337957,1770066849804,-300.0,0.00020845,2]
[404337958,1770066849847,-300.0,0.00020845,2]
[404337959,1770066849888,-300.0,0.00020845,2]
[404337960,1770066850077,-300.0,0.00020845,2]
[404337961,1770066850121,-300.0,0.00020845,2]
[404337962,1770066850155,-300.0,0.00020845,2]
[404337963,1770066850198,-300.0,0.00020845,2]
[404337964,1770066850235,-300.0,0.00020845,2]
[404337965,1770066850274,-300.0,0.00020845,2]
[404337966,1770066850310,-300.0,0.00020845,2]
[404337967,1770066850345,-300.0,0.00020845,2]
[404337968,1770066850381,-300.0,0.00020845,2]
[404337969,1770066850419,-300.0,0.00020845,2]
[404337970,1770066850456,-300.0,0.00020845,2]
[404337971,1770066850492,-300.0,0.00020845,2]
[404337972,1770066850527,-500.0,0.00021005,2]
[404337973,1770066850562,-600.0,0.00021261,10]
[404337974,1770066850593,-300.0,0.00021561,6]
[404337975,1770066850808,-300.0,0.00021561,6]
[404337976,1770066850841,-420.0,0.00022677,2]
[404337977,1770066850872,-720.0,0.00023387,10]
[404337978,1770066850903,-587.0,0.00024672,2]
[404337979,1770066850935,-864.0,0.00025726,10]
[404337980,1770066850964,-300.0,0.00026116,2]
[404337981,1770066850996,-500.0,0.00026848,2]
[404337982,1770066851023,-301.14717896,0.00026848,2]
[404337983,1770066851052,-500.0,0.00026848,2]
[404337984,1770066851084,-346.21619119,0.00026848,2]
[404337985,1770066851181,-500.0,0.00026848,2]
[404337986,1770066851212,-1000.0,0.00028298,30]
[404337987,1770066891497,-714.99333332,0.00032517,7]
[404337995,1770066903671,500.0,0.00013273,2]
[404337996,1770066903750,268.71089634,0.00013699,2]
[404337998,1770066909974,287.71384729,0.00013699,2]
[404337999,1770066910146,508.24952436,0.00013699,2]
[404338016,1770067023184,537.57289958,0.00013273,2]
[404338347,1770067632779,6057.05809076,0.00039235,120]
[404338349,1770067642298,9830.2521039,0.00039235,120]
[404338351,1770067683387,425.42049233,0.00010618,2]
[404338352,1770067689906,189.14577789,0.0001,2]
[404338353,1770067700271,18404.2256288,0.00039235,120]
[404338354,1770067700447,27776.97226608,0.00039235,120]
[404338355,1770067708408,5845.98760612,0.00039235,120]
[404338356,1770067708575,508393.56864837,0.00039235,120]
[404338357,1770067714162,5004.66727389,0.0001,2]
[404338358,1770067714817,2278.52928832,0.0001,2]
[404338359,1770067714844,387.35092932,0.0001,2]
[404338360,1770067715038,4982.18964558,0.00039235,120]
[404338475,1770067837620,-812.0,0.00024663,2]
[404338478,1770067837631,-68.42128627,0.00025059,2]
[404338483,1770067837676,-81.57871373,0.00025059,2]
[404338486,1770067837687,-177.0,0.00027059,2]
[404338488,1770067837697,-166.66666666,0.0002779,2]
[404338490,1770067837707,-970.714985,0.00029023,2]
[404338492,1770067837718,-204.0,0.00029059,2]
[404338495,1770067837735,-231.0,0.00031059,2]
[404338498,1770067837750,-181.74171985,0.00033059,120]
[404338502,1770067837763,-76.25828015,0.00033059,120]
[404338505,1770067837773,-174.481,0.00033418,35]
[404338508,1770067837784,-1200.0,0.00034194,3]
[404338511,1770067837794,-300.0,0.00034196,3]
[404338514,1770067837805,-300.0,0.00034196,3]
[404338518,1770067837823,-300.0,0.00034196,3]
[404338521,1770067837848,-255.41065586,0.00034197,7]
[404338523,1770067837870,-13118.91025726,0.00034198,2]
[404338707,1770067839804,-11701.41601644,0.00034198,2]
[404338709,1770067839815,-285.0,0.00035059,120]
[404338711,1770067839829,-597.09586725,0.00035419,2]
[404338714,1770067839840,-214.64,0.00036488,60]
[404338716,1770067839851,-214.6591185,0.00036588,60]
[404338729,1770067839966,-717.0,0.0003684,2]
[404338731,1770067839979,-180.077,0.0003684,2]
[404338734,1770067839990,-282.54960323,0.00037059,120]
[404338736,1770067839999,-1021.53723498,0.000378,2]
[404338738,1770067840009,-168.0,0.00038226,2]
[404338740,1770067840019,-222.22222222,0.000388,2]
[404338741,1770067840029,-1610.35,0.00039225,10]
[404338743,1770067840038,-1513.85,0.00039225,10]
[404338746,1770067840048,-1261.54,0.00039225,10]
[404338747,1770067840056,-112973.48276317,0.00039235,2]
[404338750,1770067840067,-6357.3,0.00039235,2]
[404338752,1770067840083,-18162.55305422,0.00039235,2]
[404338754,1770067840092,-261.10004817,0.00039235,2]
[404338756,1770067840101,-3804.86323571,0.00039235,2]
[404338758,1770067840110,-675.68753443,0.00039235,2]
[404338760,1770067840119,-1676.92722119,0.00039235,2]
[404338762,1770067840128,-326.87687778,0.00039235,2]
[404338764,1770067840137,-328.69968548,0.00039235,2]
[404338766,1770067840146,-258.5399178,0.00039235,2]
[404338768,1770067840155,-180.11046574,0.00039235,30]
[404338770,1770067840164,-163.29241328,0.0003966,2]
[404338772,1770067840174,-717.0,0.0003984,2]
[404338774,1770067840184,-179.0,0.0003984,2]
[404338776,1770067840193,-166.66666666,0.000399,2]
[404338778,1770067840203,-458.62,0.0003999,3]
[404338780,1770067840212,-32954.63868275,0.0004,2]
[404339170,1770067844011,-1051.29,0.00039225,10]
[404339172,1770067844021,-18507.84736861,0.0004,2]
[404339301,1770067845741,-6482.93847606,0.0004,2]
[404339302,1770067845753,-344.15242207,0.0004,2]
[404339303,1770067845854,-3962.12720614,0.0004,2]
[404339432,1770067926607,262.87439204,0.00013699,2]
[404339437,1770067979529,-210.90463963,0.00034197,7]
[404339438,1770067979557,-314.70474861,0.00034197,7]
[404339441,1770067982457,10650.64924,0.00039235,120]
[404339443,1770068008979,-31.90463963,0.00037182,2]
[404339444,1770068009001,-147.09536037,0.00037182,2]
[404339496,1770068607965,5000.0,0.00039238,120]
[404339626,1770068660638,5054.366415,0.00039238,120]
[404339633,1770068736911,2500.0,0.00039238,120]
[404339757,1770068918835,-250.0,0.0002972,21]
[404339758,1770068918874,-250.0,0.00029721,21]
[404339876,1770069031650,-190.83,0.00036497,60]
[404339877,1770069031661,-72.04439204,0.00036597,60]
[404340103,1770069040032,-118.78560796,0.00036597,60]
[404340105,1770069040042,-179.0,0.00037182,2]
[404340107,1770069040052,-77.67239985,0.000388,2]
[404340522,1770069044171,-144.54982237,0.000388,2]
[404340523,1770069044181,-111.65017763,0.00039237,5]
[404340524,1770069044192,-243.34982237,0.00039237,5]
[404340525,1770069044201,-252.04487859,0.000399,2]
[404340526,1770069044212,-672.80841133,0.000399,2]
[404340527,1770069044223,-6382.60377822,0.000399,2]
[404340528,1770069044233,-1323.91,0.0003999,10]
[404340529,1770069044242,-1103.26,0.0003999,10]
[404340530,1770069044250,-919.38,0.0003999,10]
[404340531,1770069044259,-766.15,0.0003999,10]
[404340533,1770069044269,-500.0,0.00039993,31]
[404340535,1770069044278,-500.0,0.00039993,7]